fUSD/lending_fUSD_20250125
["ID","MTS","AMOUNT","RATE_DAILY","PERIOD"]
[350335519,1737801064516,-14211.6663769,0.00019844,3]
[350335520,1737801064526,-357.00320628,0.00019855,2]
[350335521,1737801064536,-500.0,0.00019856,2]
[350335522,1737801064547,-500.0,0.00019856,2]
[350335523,1737801064556,-500.0,0.00019856,2]
[350335524,1737801064566,-500.0,0.00019856,2]
[350335525,1737801064576,-500.0,0.00019856,2]
[350335526,1737801064585,-500.0,0.00019856,2]
[350335527,1737801064595,-500.0,0.00019856,2]
[350335528,1737801064606,-500.0,0.00019856,2]
[350335529,1737801064615,-500.0,0.00019856,2]
[350335530,1737801064625,-508.0,0.00019856,2]
[350335531,1737801064634,-611.67,0.00019858,2]
[350335532,1737801064643,-641.32,0.00019858,2]
[350335533,1737801064653,-848.02,0.00019858,2]
[350335534,1737801064663,-619.16,0.00019858,2]
[350335535,1737801064676,-964.88,0.00019858,2]
[350335536,1737801064686,-1172.58,0.00019858,2]
[350335537,1737801064695,-878.03,0.00019858,2]
[350335538,1737801064706,-500.0,0.00019858,2]
[350335539,1737801064718,-692.45,0.00019858,2]
[350335540,1737801064728,-582.41,0.00019858,2]
[350335541,1737801064738,-851.73,0.00019858,2]
[350335542,1737801064749,-500.0,0.00019858,2]
[350335543,1737801064758,-924.69,0.00019858,2]
[350335544,1737801064768,-632.18,0.00019858,2]
[350335545,1737801064778,-1362.24,0.00019858,2]
[350335546,1737801064788,-500.0,0.00019858,2]
[350335547,1737801064798,-561.04,0.00019858,2]
[350335548,1737801064808,-829.63,0.00019858,2]
[350335549,1737801064817,-936.54,0.00019858,2]
[350335550,1737801064826,-567.79,0.00019858,2]
[350335551,1737801064836,-853.93,0.00019858,2]
[350335552,1737801064847,-624.5,0.00019858,2]
[350335553,1737801064856,-1838.28,0.00019858,2]
[350335554,1737801064865,-951.63,0.00019858,2]
[350335555,1737801064875,-500.0,0.00019858,2]
[350335556,1737801064884,-555.01,0.00019858,2]
[350335557,1737801064894,-500.0,0.00019858,2]
[350335558,1737801064903,-1085.65,0.00019858,2]
[350335559,1737801064913,-773.41,0.00019858,2]
[350335560,1737801064923,-1278.91,0.00019859,2]
[350335561,1737801064935,-500.0,0.00019859,2]
[350335562,1737801064945,-803.72,0.00019859,2]
[350335563,1737801064955,-1404.19,0.00019859,2]
[350335564,1737801064965,-840.11,0.00019859,2]
[350335565,1737801064975,-701.11,0.00019859,2]
[350335566,1737801064984,-500.0,0.00019859,2]
[350335567,1737801064994,-500.0,0.00019859,2]
[350335568,1737801065004,-1000.58,0.00019859,2]
[350335569,1737801065013,-625.73,0.00019859,2]
[350335570,1737801065023,-500.0,0.00019859,2]
[350335571,1737801065035,-978.06,0.00019859,2]
[350335572,1737801065045,-309.26,0.00019859,2]
[350335573,1737801065055,-500.0,0.00019859,2]
[350335574,1737801065068,-906.79,0.00019859,2]
[350335575,1737801065079,-500.0,0.00019859,2]
[350335576,1737801065090,-673.31,0.00019859,2]
[350335577,1737801065099,-1232.0,0.00019859,2]
[350335578,1737801065109,-455.76,0.00019859,2]
[350335579,1737801065118,-1286.91,0.00019859,2]
[350335580,1737801065127,-74968.61728753,0.0001987,2]
[350335581,1737801065137,-151.0,0.0001987,2]
[350335582,1737801065147,-152.0,0.00019875,3]
[350335583,1737801065156,-8104.73517046,0.000199,2]
[350335584,1737801065166,-40012.92276854,0.000199,2]
[350335585,1737801065175,-500.0,0.000199,2]
[350335586,1737801065184,-500.0,0.000199,2]
[350335587,1737801065193,-500.0,0.000199,2]
[350335588,1737801065202,-500.0,0.000199,2]
[350335589,1737801065212,-500.0,0.000199,2]
[350335590,1737801065221,-451.5545,0.000199,2]
[350335591,1737801065230,-1000.0,0.000199,2]
[350335592,1737801065239,-1000.0,0.000199,2]
[350335593,1737801065249,-594.5553,0.000199,2]
[350335594,1737801065258,-684.18956319,0.000199,2]
[350335595,1737801065267,-3300.0,0.000199,7]
[350335596,1737801065276,-5513.42827001,0.000199,7]
[350335597,1737801065286,-151.0,0.000199,2]
[350335598,1737801065295,-158.75660413,0.000199,2]
[350335599,1737801065305,-180.27134514,0.000199,2]
[350335600,1737801065314,-23791.6911767,0.000199,2]
[350335601,1737801065324,-154.70960457,0.000199,3]
[350335602,1737801065333,-1829.47522252,0.000199,2]
[350335603,1737801065342,-972.16413202,0.00019934,2]
[350335604,1737801065351,-251.24412566,0.00019972,2]
[350335605,1737801065360,-150.0,0.00019972,2]
[350335606,1737801065370,-235275.0,0.00019973,2]
[350335607,1737801065380,-500.0,0.00019973,2]
[350335608,1737801065390,-611.67,0.00019995,2]
[350335609,1737801065400,-641.32,0.00019995,2]
[350335610,1737801065410,-848.02,0.00019995,2]
[350335611,1737801065419,-619.16,0.00019995,2]
[350335612,1737801065429,-964.88,0.00019995,2]
[350335613,1737801065439,-1172.58,0.00019995,2]
[350335614,1737801065449,-878.03,0.00019995,2]
[350335615,1737801065459,-500.0,0.00019995,2]
[350335616,1737801065469,-692.45,0.00019995,2]
[350335617,1737801065479,-582.41,0.00019995,2]
[350335618,1737801065489,-851.73,0.00019995,2]
[350335619,1737801065499,-500.0,0.00019995,2]
[350335620,1737801065508,-924.69,0.00019995,2]
[350335621,1737801065518,-632.18,0.00019995,2]
[350335622,1737801065527,-1362.24,0.00019995,2]
[350335623,1737801065537,-448.80873101,0.00019995,2]
[350335624,1737801065547,-561.04,0.00019995,2]
[350335625,1737801065556,-829.63,0.00019995,2]
[350335626,1737801065566,-936.54,0.00019995,2]
[350335627,1737801065576,-567.79,0.00019995,2]
[350335628,1737801065585,-853.93,0.00019995,2]
[350335629,1737801065595,-1838.28,0.00019995,2]
[350335630,1737801065605,-951.63,0.00019995,2]
[350335631,1737801065614,-500.0,0.00019995,2]
[350335632,1737801065624,-555.01,0.00019995,2]
[350335633,1737801065633,-296.11,0.00019995,2]
[350335634,1737801065643,-1085.65,0.00019995,2]
[350335635,1737801065652,-773.41,0.00019995,2]
[350335636,1737801065662,-1278.91,0.00019996,2]
[350335637,1737801065674,-526.53260942,0.00019996,2]
[350335638,1737801065683,-803.72,0.00019996,2]
[350335639,1737801065693,-1404.19,0.00019996,2]
[350335640,1737801065702,-840.11,0.00019996,2]
[350335641,1737801065713,-701.11,0.00019996,2]
[350335642,1737801065722,-500.0,0.00019996,2]
[350335643,1737801065732,-500.0,0.00019996,2]
[350335644,1737801065741,-1000.58,0.00019996,2]
[350335645,1737801065753,-625.73,0.00019996,2]
[350335646,1737801065763,-500.0,0.00019996,2]
[350335647,1737801065772,-978.06,0.00019996,2]
[350335648,1737801065783,-500.0,0.00019996,2]
[350335649,1737801065793,-906.79,0.00019996,2]
[350335650,1737801065803,-365.56898101,0.00019996,2]
[350335651,1737801065813,-673.31,0.00019996,2]
[350335652,1737801065823,-1232.0,0.00019996,2]
[350335653,1737801065832,-773.74,0.00019999,2]
[350335654,1737801065842,-500.0,0.00019999,2]
[350335655,1737801065851,-633.83675568,0.0002,2]
[350335656,1737801065860,-814.08910062,0.0002,2]
[350335657,1737801065870,-2110.0,0.0002,2]
[350335658,1737801065880,-2855.0,0.0002,6]
[350335659,1737801065889,-1985.0,0.0002,2]
[350335660,1737801065898,-471719.19764894,0.0002,2]
[350335661,1737801065908,-16530.09743692,0.0002,7]
[350335662,1737801065918,-2777.33490535,0.0002,2]
[350335663,1737801065928,-1790.77987893,0.0002,2]
[350335664,1737801065937,-250.74461181,0.0002,2]
[350335665,1737801065946,-335264.94198839,0.0002,2]
[350335666,1737801066120,-29459.6245114,0.0002,2]
[350335667,1737801066288,-489.88457672,0.00017803,2]
[350335668,1737801066299,-10.11542328,0.00017803,2]
[350335669,1737801066309,-168.64023808,0.00017939,2]
[350335670,1737801066319,-157.74180867,0.0001794,2]
[350335671,1737801066331,-342.25819133,0.0001794,2]
[350335672,1737801066340,-500.0,0.00018077,2]
[350335673,1737801066350,-500.0,0.00018214,2]
[350335674,1737801066360,-500.0,0.00018215,2]
[350335675,1737801066370,-500.0,0.00018352,2]
[350335676,1737801066379,-500.0,0.00018489,2]
[350335677,1737801066388,-500.0,0.00018626,2]
[350335678,1737801066397,-354.68037967,0.00018763,2]
[350335679,1737801066445,-145.31962033,0.00018763,2]
[350335680,1737801066455,-500.0,0.00018899,2]
[350335681,1737801066464,-500.0,0.000189,2]
[350335682,1737801066474,-500.0,0.00019036,2]
[350335683,1737801066484,-500.0,0.00019037,2]
[350335684,1737801066494,-500.0,0.00019173,2]
[350335685,1737801066504,-500.0,0.00019174,2]
[350335686,1737801066514,-151.0,0.0001919,2]
[350335687,1737801066523,-2020.0,0.0001919,2]
[350335688,1737801066533,-500.0,0.0001931,2]
[350335689,1737801066544,-500.0,0.00019447,2]
[350335690,1737801066554,-500.0,0.00019584,2]
[350335691,1737801066564,-500.0,0.00019721,2]
[350335692,1737801066575,-500.0,0.00019858,2]
[350335693,1737801066585,-1286.91,0.00019996,2]
[350335694,1737801066594,-4026.34542608,0.0002,2]
[350335695,1737801066611,-500.0,0.00019995,2]
[350335696,1737801066620,-6197.81621701,0.0002,2]
[350335697,1737801066967,-500.0,0.00017803,2]
[350335698,1737801066977,-500.0,0.00017803,2]
[350335699,1737801066987,-500.0,0.0001794,2]
[350335700,1737801066996,-500.0,0.00018077,2]
[350335701,1737801067006,-500.0,0.00018214,2]
[350335702,1737801067015,-500.0,0.00018351,2]
[350335703,1737801067023,-500.0,0.00018488,2]
[350335704,1737801067034,-500.0,0.00019311,2]
[350335705,1737801067043,-500.0,0.00019448,2]
[350335706,1737801067052,-500.0,0.00019585,2]
[350335707,1737801067062,-500.0,0.00019722,2]
[350335708,1737801067071,-542.37490865,0.00019859,2]
[350335709,1737801067080,-321982.47820356,0.0002,2]
[350335710,1737801067091,-1201.98778846,0.0002,2]
[350335711,1737801067262,-339.91619132,0.00017802,2]
[350335712,1737801067277,-160.08380868,0.00017802,2]
[350335713,1737801067287,-500.0,0.00017803,2]
[350335714,1737801067296,-500.0,0.00017803,2]
[350335715,1737801067305,-500.0,0.00017939,2]
[350335716,1737801067314,-500.0,0.0001794,2]
[350335717,1737801067323,-500.0,0.0001794,2]
[350335718,1737801067333,-500.0,0.0001794,2]
[350335719,1737801067342,-500.0,0.00018077,2]
[350335720,1737801067352,-500.0,0.00018077,2]
[350335721,1737801067361,-500.0,0.00018077,2]
[350335722,1737801067371,-500.0,0.00018077,2]
[350335723,1737801067380,-500.0,0.00018214,2]
[350335724,1737801067389,-500.0,0.00018214,2]
[350335725,1737801067398,-500.0,0.00018214,2]
[350335726,1737801067407,-500.0,0.00018214,2]
[350335727,1737801067417,-500.0,0.00018351,2]
[350335728,1737801067426,-500.0,0.00018351,2]
[350335729,1737801067435,-584.51,0.00018351,2]
[350335730,1737801067445,-500.0,0.00018488,2]
[350335731,1737801067454,-500.0,0.00018488,2]
[350335732,1737801067463,-500.0,0.00018625,2]
[350335733,1737801067473,-500.0,0.00018625,2]
[350335734,1737801067482,-500.0,0.00018625,2]
[350335735,1737801067491,-500.0,0.00018762,2]
[350335736,1737801067501,-500.0,0.00018762,2]
[350335737,1737801067510,-500.0,0.00018899,2]
[350335738,1737801067521,-500.0,0.00018899,2]
[350335739,1737801067531,-500.0,0.00019036,2]
[350335740,1737801067541,-500.0,0.00019036,2]
[350335741,1737801067551,-500.0,0.00019173,2]
[350335742,1737801067560,-1106.0,0.0001919,2]
[350335743,1737801067569,-500.0,0.0001931,2]
[350335744,1737801067579,-500.0,0.00019447,2]
[350335745,1737801067589,-500.0,0.00019584,2]
[350335746,1737801067599,-509729.24663936,0.0002,2]
[350335747,1737801067609,-8046.05197988,0.0002,10]
[350335748,1737801067618,-14000.0,0.0002,2]
[350335749,1737801067629,-652.55,0.0002,2]
[350335750,1737801067638,-11977.27665986,0.0002,2]
[350335751,1737801067648,-2785.58,0.0002,2]
[350335752,1737801067658,-150.0,0.0002,2]
[350335753,1737801067668,-82236.0,0.0002,2]
[350335754,1737801067680,-150.0,0.0002,2]
[350335755,1737801067690,-16113.59496022,0.0002,2]
[350335756,1737801067699,-151.0,0.0002,2]
[350335757,1737801067708,-151.0,0.0002,2]
[350335758,1737801067717,-151.0,0.0002,2]
[350335759,1737801067735,-151.0,0.0002,2]
[350335760,1737801067747,-176.359469,0.0002,2]
[350335761,1737801067756,-176.359469,0.0002,2]
[350335762,1737801067767,-176.359469,0.0002,2]
[350335763,1737801067775,-176.359469,0.0002,2]
[350335764,1737801067785,-151.0,0.0002,2]
[350335765,1737801067794,-151.0,0.0002,2]
[350335766,1737801067803,-1320.07,0.0002,2]
[350335767,1737801067813,-151.21842888,0.0002,2]
[350335768,1737801067823,-159.0,0.0002,2]
[350335769,1737801067832,-151.0,0.0002,2]
[350335770,1737801067842,-151.0,0.0002,2]
[350335771,1737801067852,-151.0,0.0002,2]
[350335772,1737801067862,-151.0,0.0002,2]
[350335773,1737801067872,-44516.23932163,0.0002,2]
[350335774,1737801067886,-3397.92443271,0.0002,2]
[350335775,1737801067914,-500.0,0.00018762,2]
[350335776,1737801067924,-500.0,0.00019173,2]
[350335777,1737801067938,-211.39872813,0.00019721,2]
[350335778,1737801067948,-199187.08119122,0.0002,2]
[350335785,1737801601077,5066.79951,0.0002112,30]
[350335789,1737801939097,-185.03,0.00010137,2]
[350335790,1737801939118,-187.5,0.00012329,2]
[350335791,1737801939137,-200.35,0.00013522,2]
[350335792,1737801939157,-254.59349884,0.00013681,2]
[350335793,1737801939178,-551.17079573,0.00013681,2]
[350335794,1737801939198,-1301.67869844,0.00013781,2]
[350335795,1737801956084,-998.48672207,0.00013781,2]
[350335796,1737802019084,-254.92687155,0.00013781,7]
[350335797,1737802033124,-319.27634108,0.00013781,7]
[350335798,1737802054098,-1027.66376204,0.00013781,7]
[350335799,1737802054119,-254.92382419,0.00013781,7]
[350335800,1737802054144,-150.0,0.00015068,2]
[350335801,1737802054165,-1263.24,0.00015091,2]
[350335802,1737802054189,-1056.21218835,0.00016525,2]
[350335806,1737802095021,3029.51,0.00022,30]
[350335811,1737802231945,-265.14,0.00016525,2]
[350335812,1737802231955,-847.3181039,0.00016525,2]
[350335813,1737802231965,-245.73884115,0.00016542,2]
[350335814,1737802231975,-1000.0,0.0001656,2]
[350335815,1737802231984,-250.0,0.00016594,2]
[350335816,1737802231994,-250.0,0.00016601,2]
[350335817,1737802232003,-5164.95046275,0.00016642,2]
[350335818,1737802232013,-250.0,0.00016642,2]
[350335819,1737802232022,-464.39,0.00016642,2]
[350335820,1737802232031,-2756.74,0.00016748,2]
[350335821,1737802232039,-23900.0,0.00016776,2]
[350335822,1737802232049,-667.96,0.00016779,2]
[350335823,1737802232058,-550.0,0.0001678,2]
[350335824,1737802232067,-5989.79082628,0.00016781,2]
[350335825,1737802232084,-1190.87951664,0.00016781,2]
[350335826,1737802232100,-2405.1,0.00016781,2]
[350335827,1737802232117,-3615.19767817,0.00016781,2]
[350335828,1737802232167,-256.58197891,0.00016781,2]
[350335829,1737802232175,-500.0,0.00016781,2]
[350335830,1737802232185,-185.03,0.00016813,2]
[350335831,1737802232195,-1000.0,0.00016899,2]
[350335832,1737802232205,-5214.35874753,0.00017173,2]
[350335833,1737802232216,-271.5,0.00017173,2]
[350335834,1737802232232,-11039.14125247,0.00017173,2]
[350335835,1737802232246,-173.32,0.00017225,2]
[350335836,1737802232255,-1263.24,0.00017355,2]
[350335837,1737802232265,-533.50180784,0.00017701,2]
[350335838,1737802232274,-1018.94489117,0.00017776,2]
[350335839,1737802232283,-178.58,0.00017777,2]
[350335840,1737802232292,-304.1398,0.00017777,2]
[350335841,1737802232302,-5000.0,0.00017777,2]
[350335842,1737802232311,-2500.0,0.00017777,2]
[350335843,1737802232322,-8613.14024369,0.000178,2]
[350335844,1737802232331,-700.0,0.000178,6]
[350335845,1737802232340,-1069.12473473,0.00017801,2]
[350335846,1737802232350,-500.0,0.00017802,2]
[350335847,1737802232359,-500.0,0.00017802,2]
[350335848,1737802232368,-500.0,0.00017802,2]
[350335849,1737802232378,-500.0,0.00017802,2]
[350335850,1737802232387,-500.0,0.00017802,2]
[350335851,1737802232396,-500.0,0.00017802,2]
[350335852,1737802232405,-500.0,0.00017802,2]
[350335853,1737802232414,-500.0,0.00017802,2]
[350335854,1737802232423,-500.0,0.00017802,2]
[350335855,1737802232432,-500.0,0.00017802,2]
[350335856,1737802232442,-500.0,0.00017802,2]
[350335858,1737802232452,-500.0,0.00017802,2]
[350335860,1737802232461,-500.0,0.00017802,2]
[350335862,1737802232470,-500.0,0.00017802,2]
[350335864,1737802232479,-500.0,0.00017802,2]
[350335865,1737802232490,-500.0,0.00017802,2]
[350335867,1737802232501,-500.0,0.00017802,2]
[350335868,1737802232510,-500.0,0.00017802,2]
[350335869,1737802232520,-500.0,0.00017802,2]
[350335870,1737802232530,-645.49812712,0.00017802,2]
[350335871,1737802232539,-500.0,0.00017802,2]
[350335872,1737802232548,-500.0,0.00017802,2]
[350335873,1737802232557,-500.0,0.00017802,2]
[350335874,1737802232567,-500.0,0.00017802,2]
[350335875,1737802232576,-500.0,0.00017802,2]
[350335876,1737802232586,-500.0,0.00017802,2]
[350335877,1737802232595,-500.0,0.00017802,2]
[350335878,1737802232605,-500.0,0.00017802,2]
[350335879,1737802232614,-500.0,0.00017802,2]
[350335880,1737802232623,-500.0,0.00017802,2]
[350335881,1737802232633,-500.0,0.00017802,2]
[350335882,1737802232642,-500.0,0.00017802,2]
[350335883,1737802232651,-500.0,0.00017802,2]
[350335884,1737802232661,-500.0,0.00017802,2]
[350335885,1737802232671,-500.0,0.00017802,2]
[350335886,1737802232680,-500.0,0.00017802,2]
[350335887,1737802232689,-500.0,0.00017802,2]
[350335888,1737802232699,-500.0,0.00017802,2]
[350335889,1737802232708,-500.0,0.00017802,2]
[350335890,1737802232718,-500.0,0.00017802,2]
[350335891,1737802232728,-500.0,0.00017802,2]
[350335892,1737802232737,-500.0,0.00017802,2]
[350335893,1737802232747,-500.0,0.00017802,2]
[350335894,1737802232756,-500.0,0.00017802,2]
[350335895,1737802232766,-500.0,0.00017803,2]
[350335896,1737802232775,-500.0,0.00017803,2]
[350335897,1737802232785,-500.0,0.00017803,2]
[350335898,1737802232794,-500.0,0.00017803,2]
[350335899,1737802232804,-500.0,0.00017803,2]
[350335900,1737802232813,-500.0,0.00017803,2]
[350335901,1737802232822,-359.94355148,0.00017803,2]
[350335902,1737802232832,-500.0,0.00017803,2]
[350335903,1737802232842,-500.0,0.00017803,2]
[350335904,1737802232852,-500.0,0.00017803,2]
[350335905,1737802232861,-500.0,0.00017803,2]
[350335906,1737802232871,-500.0,0.00017803,2]
[350335907,1737802232880,-500.0,0.00017803,2]
[350335908,1737802232890,-496.89932005,0.00017803,2]
[350335909,1737802232899,-500.0,0.00017803,2]
[350335910,1737802232908,-500.0,0.00017803,2]
[350335911,1737802232917,-500.0,0.00017803,2]
[350335912,1737802232926,-500.0,0.00017803,2]
[350335913,1737802232935,-500.0,0.00017803,2]
[350335914,1737802232944,-500.0,0.00017803,2]
[350335915,1737802232955,-500.0,0.00017803,2]
[350335916,1737802232964,-500.0,0.00017803,2]
[350335917,1737802232973,-300.0,0.00017803,2]
[350335918,1737802232982,-500.0,0.00017803,2]
[350335919,1737802232991,-500.0,0.00017803,2]
[350335920,1737802233000,-500.0,0.00017803,2]
[350335921,1737802233011,-500.0,0.00017803,2]
[350335922,1737802233020,-500.0,0.00017803,2]
[350335923,1737802233030,-500.0,0.00017803,2]
[350335924,1737802233039,-459.37132251,0.00017803,2]
[350335925,1737802233049,-500.0,0.00017803,2]
[350335926,1737802233058,-500.0,0.00017803,2]
[350335927,1737802233069,-500.0,0.00017803,2]
[350335928,1737802233079,-500.0,0.00017803,2]
[350335929,1737802233088,-500.0,0.00017803,2]
[350335930,1737802233098,-500.0,0.00017803,2]
[350335931,1737802233108,-500.0,0.00017803,2]
[350335932,1737802233118,-489.57933605,0.00017803,2]
[350335933,1737802233127,-289.02667022,0.00017803,2]
[350335934,1737802233138,-500.0,0.00017803,2]
[350335935,1737802233148,-500.0,0.00017803,2]
[350335936,1737802233158,-500.0,0.00017803,2]
[350335937,1737802233167,-500.0,0.00017803,2]
[350335938,1737802233178,-500.0,0.00017803,2]
[350335939,1737802233188,-500.0,0.00017803,2]
[350335940,1737802233198,-169.18,0.0001787,2]
[350335941,1737802233207,-151.09600292,0.00017873,2]
[350335942,1737802233216,-161.07970801,0.00017873,2]
[350335943,1737802233226,-500.0,0.00017873,2]
[350335944,1737802233235,-500.0,0.00017873,2]
[350335945,1737802233249,-454.41843999,0.00017873,2]
[350335946,1737802233259,-500.0,0.00017875,2]
[350335947,1737802233269,-500.0,0.00017875,2]
[350335948,1737802233279,-500.0,0.00017875,2]
[350335949,1737802233288,-532.03,0.00017875,2]
[350335950,1737802233297,-500.0,0.00017875,2]
[350335951,1737802233306,-500.0,0.00017875,2]
[350335952,1737802233317,-500.0,0.00017875,2]
[350335953,1737802233326,-988.76,0.00017875,2]
[350335954,1737802233336,-500.0,0.00017875,2]
[350335955,1737802233346,-500.0,0.00017875,2]
[350335956,1737802233355,-1721.11,0.00017875,2]
[350335957,1737802233365,-500.0,0.00017875,2]
[350335958,1737802233374,-500.0,0.00017875,2]
[350335959,1737802233383,-500.0,0.00017875,2]
[350335960,1737802233393,-500.0,0.00017875,2]
[350335961,1737802233402,-1293.15,0.00017875,2]
[350335962,1737802233412,-412.06623483,0.00017876,2]
[350335963,1737802233421,-500.0,0.00017876,2]
[350335964,1737802233431,-311.91464074,0.00017876,2]
[350335965,1737802233444,-188.08535926,0.00017876,2]
[350335966,1737802233453,-186.60982332,0.00017876,2]
[350335967,1737802233489,-488.89347899,0.00017875,2]
[350335968,1737802233501,-11.10652101,0.00017875,2]
[350335969,1737802233511,-313.39017668,0.00017876,2]
[350335970,1737802233522,-500.0,0.00017876,2]
[350335971,1737802233532,-500.0,0.00017876,2]
[350335972,1737802233542,-46.18595024,0.00017876,2]
[350335973,1737802233554,-453.81404976,0.00017876,2]
[350335974,1737802233564,-500.0,0.00017876,2]
[350335975,1737802233574,-500.0,0.00017876,2]
[350335976,1737802233583,-97.49045024,0.00017876,2]
[350335977,1737802233599,-402.50954976,0.00017876,2]
[350335978,1737802233609,-248.2416983,0.00017876,2]
[350335979,1737802233620,-251.7583017,0.00017876,2]
[350335980,1737802233630,-234.46827655,0.00017876,2]
[350335981,1737802233639,-32.71342175,0.00017876,2]
[350335982,1737802233651,-375.839991,0.00017876,2]
[350335983,1737802233672,-91.44658725,0.00017876,2]
[350335984,1737802233682,-222.83340384,0.00017876,2]
[350335985,1737802237826,-500.0,0.00017875,2]
[350335986,1737802237836,-277.16659616,0.00017876,2]
[350335987,1737802237845,-500.0,0.00017876,2]
[350335988,1737802237855,-500.0,0.00017876,2]
[350335989,1737802237864,-500.0,0.00017876,2]
[350335990,1737802237874,-500.0,0.00017876,2]
[350335991,1737802237883,-500.0,0.00017876,2]
[350335992,1737802238054,-515.51174931,0.00017876,2]
[350335993,1737802238064,-477.6366143,0.00017876,2]
[350335994,1737802238074,-500.0,0.00017876,2]
[350335995,1737802238083,-197.738714,0.00017876,2]
[350335996,1737802238093,-500.0,0.00017876,2]
[350335997,1737802238102,-500.0,0.00017876,2]
[350335998,1737802238112,-500.0,0.00017876,2]
[350335999,1737802238122,-500.0,0.00017876,2]
[350336000,1737802238131,-500.0,0.00017876,2]
[350336001,1737802238141,-500.0,0.00017876,2]
[350336002,1737802238151,-500.0,0.00017876,2]
[350336003,1737802238161,-500.0,0.00017876,2]
[350336004,1737802238171,-500.0,0.00017876,2]
[350336005,1737802238181,-160.071777,0.00017876,2]
[350336006,1737802238193,-158.602003,0.00017876,2]
[350336007,1737802238213,-500.0,0.00017876,2]
[350336008,1737802238226,-500.0,0.00017876,2]
[350336009,1737802238236,-160.687533,0.00017876,2]
[350336010,1737802238250,-500.0,0.00017876,2]
[350336011,1737802238259,-500.0,0.00017876,2]
[350336012,1737802238268,-500.0,0.00017876,2]
[350336013,1737802238278,-500.0,0.00017876,2]
[350336014,1737802238289,-500.0,0.00017876,2]
[350336015,1737802238299,-500.0,0.00017876,2]
[350336016,1737802238308,-500.0,0.00017876,2]
[350336017,1737802238320,-500.0,0.00017876,2]
[350336018,1737802238330,-500.0,0.00017876,2]
[350336019,1737802238339,-500.0,0.00017876,2]
[350336020,1737802238349,-500.0,0.00017876,2]
[350336021,1737802238359,-500.0,0.00017876,2]
[350336022,1737802238369,-500.0,0.00017876,2]
[350336023,1737802238384,-500.0,0.00017876,2]
[350336024,1737802238393,-500.0,0.00017876,2]
[350336025,1737802238402,-500.0,0.00017876,2]
[350336026,1737802238410,-500.0,0.00017876,2]
[350336027,1737802238419,-500.0,0.00017876,2]
[350336028,1737802238428,-500.0,0.00017876,2]
[350336030,1737802238438,-500.0,0.00017876,2]
[350336031,1737802238446,-500.0,0.00017876,2]
[350336032,1737802238455,-500.0,0.00017876,2]
[350336033,1737802238465,-500.0,0.00017876,2]
[350336034,1737802238474,-500.0,0.00017876,2]
[350336035,1737802238483,-500.0,0.00017876,2]
[350336036,1737802238491,-511.89272855,0.00017876,2]
[350336037,1737802238500,-500.0,0.00017876,2]
[350336038,1737802238509,-500.0,0.00017876,2]
[350336039,1737802238518,-500.0,0.00017876,2]
[350336040,1737802238527,-500.0,0.00017876,2]